Cogmind - Beta 10.1 @@@ ROGUE MODE // 2020.10.24 @ 20:56:20 Player: aperiodic Result: Destroyed by Z-Imprinter with Zionite Laser-M Performance ------------- Evolutions (3) 1500 Regions Visited (12) 2400 Robots Destroyed (168) 840 Value Destroyed (3892) 3892 Prototype IDs (50) 1000 Alien Tech Used (0) 0 Bonus (299) 299 TOTAL SCORE: 9931 Bonus ------- High Alert Combat Kills 33 Aligned with FarCom 300 Friendly Fire -34 Cogmind --------- Core Integrity 0/700 Matter 36/300 Energy 23/100 System Corruption 0% Temperature Cool (50) Movement Core (600) Ox11 Location -7/Deep Caves Parts ------- > --- POWER (1) -------- (None) > --- PROPULSION (2) --- (None) > --- UTILITY (8) ------ High-capacity Storage Unit Advanced Signal Interpreter Experimental Targeting Computer Advanced Weapon Cycler > --- WEAPON (2) ------- Enhanced Autogun > --- INVENTORY (12) --- Advanced Sensor Array Nanoactuators Light EM Pulse Cannon Light EM Pulse Cannon Enhanced Autogun Rocket Array Peak State ------------ > --- POWER ------------ Light Fission Core > --- PROPULSION ------- Armored Huge Wheel > --- UTILITY ---------- High-capacity Storage Unit Advanced Signal Interpreter Advanced Salvage Targeting Computer Experimental Targeting Computer Advanced Weapon Cycler Hardened Medium Armor Plating Reflective Plating Hardlight Generator > --- WEAPON ----------- Enhanced Autogun 8R-AWN's Boregun > --- INVENTORY -------- Advanced Sensor Array Nanoactuators Improved Light Armor Plating Light EM Pulse Cannon Light EM Pulse Cannon Enhanced Autogun Enhanced Autogun Enhanced Autogun Shock Bomb Launcher Rocket Array Greatsword [Rating: 64] Favorites ----------- Power Makeshift Power Source Engine Makeshift Power Source Power Core Light Fission Core Propulsion Light Treads Treads Light Treads Leg Aluminum Leg Wheel Armored Huge Wheel Utility High-capacity Storage Unit Device Advanced Sensor Array Storage High-capacity Storage Unit Processor Advanced Signal Interpreter Hackware EX Chip 1 Protection Light Armor Plating Weapon Enhanced Autogun Energy Gun Small Laser Ballistic Gun Enhanced Autogun Ballistic Cannon Light Cannon Launcher Grenade Launcher Special Weapon Remote Datajack Slashing Weapon Makeshift Axe Special Melee Weapon Datajack Build | -11 -10 -10 -9 -9 -9 -8 -8 -7 -7 -7 -7 -7 ------- Run | Scr Mat Min Mat Min Exi Min Mat Fac Low Low Zio Dee Slots Evolved 6 | . . . 2 . . . 2 2 . . . . Power . | . . . . . . . . . . . . . Propulsion . | . . . . . . . . . . . . . Utility 6 | . . . 2 . . . 2 2 . . . . Weapon . | . . . . . . . . . . . . . Parts Attached 188 | 6 17 12 36 4 35 4 24 24 3 . 14 9 Power 11 | 1 . 1 3 . 3 . 1 1 1 . . . Engine 8 | 1 . 1 3 . 2 . 1 . . . . . Core 3 | . . . . . 1 . . 1 1 . . . Reactor . | . . . . . . . . . . . . . Propulsion 35 | 2 9 2 9 1 8 . 2 2 . . . . Treads 17 | . 4 . 5 1 6 . 1 . . . . . Leg 8 | . 3 2 1 . 2 . . . . . . . Wheel 10 | 2 2 . 3 . . . 1 2 . . . . Hover . | . . . . . . . . . . . . . Flight . | . . . . . . . . . . . . . Utility 55 | 1 3 2 7 2 12 . 8 11 . . 6 3 Device 15 | . . . . . 5 . 2 4 . . 3 1 Storage 8 | 1 1 . 2 . 3 . . 1 . . . . Processor 4 | . . . . . 1 . . 1 . . 2 . Hackware 7 | . . . . . . . 6 1 . . . . Protection 21 | . 2 2 5 2 3 . . 4 . . 1 2 Artifact . | . . . . . . . . . . . . . Weapon 87 | 2 5 7 17 1 12 4 13 10 2 . 8 6 Energy Gun 5 | 1 2 . 2 . . . . . . . . . Energy Cannon . | . . . . . . . . . . . . . Ballistic Gun 47 | 1 3 3 8 1 8 2 7 6 1 . 3 4 Ballistic Cannon 5 | . . 1 4 . . . . . . . . . Launcher 15 | . . 3 3 . 3 2 2 . . . 1 1 Special Weapon 2 | . . . . . . . . . . . 2 . Impact Weapon . | . . . . . . . . . . . . . Slashing Weapon 12 | . . . . . . . 4 4 1 . 2 1 Piercing Weapon . | . . . . . . . . . . . . . Special Melee Weapon 1 | . . . . . 1 . . . . . . . Unidentified Prototypes 8 | . . . 2 . 4 . . . . . 2 . Parts Lost 43 | . 4 8 6 . 5 1 3 4 1 . . 11 Power 7 | . . 2 1 . . . 1 1 1 . . 1 Propulsion 8 | . 1 3 1 . 2 . . . . . . 1 Utility 16 | . . 2 2 . 3 . 2 2 . . . 5 Weapon 12 | . 3 1 2 . . 1 . 1 . . . 4 Highest Loss Streak 11 | . 3 5 4 . 4 1 2 1 1 . . 11 Average Slot Usage (%) 94 | . 95 97 96 100 97 100 91 91 91 92 90 89 Engine 7 | . 14 13 9 11 8 11 8 5 . . . . Core 1 | . . . . . 2 . . 1 6 7 7 6 Treads 10 | . 10 . 15 22 22 22 3 . . . . . Leg 2 | . 11 27 2 . . . . . . . . . Wheel 3 | . 4 . 3 . . . 7 7 7 7 7 6 Device 4 | . . . . . 6 11 4 5 7 7 7 14 Storage 17 | . 14 14 20 22 17 22 18 15 15 15 15 12 Processor 4 | . . . . . 5 . . 7 7 7 10 23 Hackware 10 | . . . . . . . 28 30 23 23 17 . Protection 10 | . 11 13 22 22 11 11 2 1 7 7 8 9 Ballistic Gun 17 | . 21 26 15 22 20 21 14 12 12 15 7 14 Naked Turns . | . . . . . . . . . . . . . Heaviest Build 93 | 10 42 44 68 67 84 81 81 90 87 86 93 91 Greatest Support 46 | 26 40 20 40 40 46 40 40 28 28 28 28 28 Greatest Overweight (x) 3 | . 2 3 3 1 2 2 2 3 3 3 3 3 Average Overweight (x) 1 | . . 1 1 1 1 1 2 2 2 3 2 2 Largest Inventory Capacity 20 | 6 12 12 18 18 20 20 20 20 20 20 20 20 Average Capacity 17 | 4 8 12 17 18 16 20 20 20 20 20 20 17 Most Carried 20 | 4 12 12 18 18 20 20 20 20 20 20 20 20 Average Carried 16 | 2 6 10 16 17 13 19 19 19 19 19 19 16 Final Capacity 20 | 6 12 12 18 18 20 20 20 20 20 20 20 12 Final Carried 20 | 4 12 9 18 18 20 20 20 19 20 20 20 6 Class Distribution -------------------- 34% | Mutant 31% | Hacker-Mutant 29% | Scavenger-Mutant 3% | Hauler-Mutant Dominant Class ---------------- Mutant | -10/Materials Mutant | -10/Mines Mutant | -9/Materials Mutant | -9/Mines Scavenger-Mutant | -9/Exiles Scavenger-Mutant | -8/Mines Scavenger-Mutant | -8/Materials Hacker-Mutant | -7/Factory Hacker-Mutant | -7/Lower Caves Hacker-Mutant | -7/Lower Caves Hacker-Mutant | -7/Zion Hauler-Mutant | -7/Deep Caves Resources | -11 -10 -10 -9 -9 -9 -8 -8 -7 -7 -7 -7 -7 ----------- Run | Scr Mat Min Mat Min Exi Min Mat Fac Low Low Zio Dee Matter Collected 5214 | 228 440 207 1182 84 1111 195 820 556 236 41 91 23 Remotely . | . . . . . . . . . . . . . Salvage Created 6262 | . 704 177 1547 158 401 150 1745 1171 162 24 . 23 Parts 380 | . 37 7 87 12 53 10 90 73 9 1 . 1 Haulers Intercepted 10 | . . . 5 . . . 3 2 . . . . Recyclers Shooed 10 | . . . 6 . . 1 2 1 . . . . Parts Field Recycled . | . . . . . . . . . . . . . Retrieved Matter . | . . . . . . . . . . . . . Parts Self-Destructed 4 | . . . . . . . . . 4 . . . Prevented . | . . . . . . . . . . . . . Kills | -11 -10 -10 -9 -9 -9 -8 -8 -7 -7 -7 -7 -7 ------- Run | Scr Mat Min Mat Min Exi Min Mat Fac Low Low Zio Dee Combat Hostiles Destroyed 98 | . 12 9 24 4 1 6 24 15 3 . . . Melee 2 | . . . . . . . 2 . . . . . Guns 66 | . 12 2 10 4 1 3 16 15 3 . . . Cannons 8 | . . 1 7 . . . . . . . . . AOE 22 | . . 6 7 . . 3 6 . . . . . Classes Destroyed 19 | . 6 2 4 . 2 . 2 2 1 . . . Worker 13 | . 1 2 3 . . . 4 3 . . . . Builder 3 | . 1 . . . . 1 1 . . . . . Tunneler 1 | . . . 1 . . . . . . . . . Hauler 10 | . . . 5 . . . 3 2 . . . . Recycler 15 | . 1 . 8 1 . . 4 1 . . . . Operator 6 | . 1 . 1 . . . 2 1 1 . . . Turret 1 | . . . . . 1 . . . . . . . Watcher 9 | . 1 . 3 . . . 2 3 . . . . Swarmer 21 | . . . 11 4 . 3 3 . . . . . Grunt 41 | . 12 1 9 . . 3 12 4 . . . . Brawler 1 | . . . . . . . 1 . . . . . Duelist 2 | . . . . . . . 1 1 . . . . Sentry 16 | . . . 4 . . . 7 4 1 . . . Demolisher 1 | . . 1 . . . . . . . . . . Hunter 2 | . . . . . . . . 1 1 . . . Programmer 5 | . . . . . . . . 5 . . . . Zionite 8 | . . . . . 8 . . . . . . . Decomposer 1 | . . . . . . . . . . 1 . . Master Thief 1 | . . . . . . . . . 1 . . . Assembled 7 | . . 7 . . . . . . . . . . Best Kill Streak 11 | . 4 5 10 4 3 3 11 5 1 . . . Combat Bots Only 8 | . 3 5 6 4 1 3 8 2 1 . . . Max Kills in Single Turn 3 | . 1 3 2 1 1 3 3 1 1 1 . . Gunslinging . | . . . . . . . . . . . . . Exploded 3 | . . 3 2 . . 3 2 . . . . . Melee 1 | . . . . . . . 1 . . . . . Uniques/NPCs Destroyed 4 | . . . . . 4 . . . . . . . 8R-AWN (-9/Exiles) EX-BIN (-9/Exiles) EX-DEC (-9/Exiles) EX-HEX (-9/Exiles) Combat | -11 -10 -10 -9 -9 -9 -8 -8 -7 -7 -7 -7 -7 -------- Run | Scr Mat Min Mat Min Exi Min Mat Fac Low Low Zio Dee Damage Taken 8617 | . 778 821 1119 101 1257 232 1065 1117 108 . . 2019 Core 1624 | . 143 59 123 6 247 19 313 145 . . . 569 Absorbed by Shields 75 | . . . . . . . . . . . . 75 Core Remaining (%) 40 | 100 . 19 . . . 1 43 . . . . . Volleys Fired 540 | . 65 30 123 8 97 10 71 91 16 1 4 24 Largest 2 | . 2 2 2 2 2 2 2 2 2 2 1 2 Hottest 91 | . 85 55 91 43 60 56 53 53 50 50 30 61 Shots Fired 1005 | . 127 59 237 16 166 20 127 181 32 2 4 34 Gun 854 | . 127 50 138 16 137 16 121 181 32 2 1 33 Cannon 100 | . . 5 95 . . . . . . . . . Launcher 48 | . . 4 4 . 29 4 6 . . . . 1 Special 3 | . . . . . . . . . . . 3 . Kinetic 892 | . 90 55 208 16 137 16 121 181 32 2 1 33 Thermal 62 | . 37 . 25 . . . . . . . . . Explosive 47 | . . 4 4 . 29 4 6 . . . . . Electromagnetic 1 | . . . . . . . . . . . . 1 Robot Hit Streak 32 | . 15 9 26 6 32 7 13 12 6 . 3 7 Robot Miss Streak 6 | . 3 3 6 4 2 1 3 4 4 5 . 3 Penetration Max 2 | . . . . . . . 2 . . . . . Secondary Targets 2 | . 1 . . . . . . 1 . . . . Max Gunslinging Chain 1 | . 1 . . . . . . 1 . . . . Shots Hit Robots 698 | . 91 33 146 8 131 15 106 127 18 . 3 20 Core Hits 314 | . 37 24 62 6 42 13 65 49 11 1 . 4 Critical Hits 41 | . . . 2 . 11 2 23 2 . . . 1 Critical Kills 15 | . . . 1 . 1 . 12 1 . . . . Critical Parts Destroyed 21 | . . . 1 . 9 2 8 1 . . . . Melee Attacks 79 | . . . . . 17 . 30 23 2 . 6 1 Impact . | . . . . . . . . . . . . . Slashing 62 | . . . . . . . 30 23 2 . 6 1 Piercing . | . . . . . . . . . . . . . Sneak Attacks 9 | . . . . . . . 6 3 . . . . Combat Hostiles . | . . . . . . . . . . . . . Follow-up Attacks . | . . . . . . . . . . . . . Damage Inflicted 14112 | . 1182 745 2522 219 2151 680 3246 2642 310 19 . 396 Guns 9394 | . 1171 324 1273 141 1736 195 1658 2248 310 19 . 319 Cannons 855 | . . 69 786 . . . . . . . . . Explosions 2208 | . . 352 460 . 415 485 475 . . . . 21 Melee 1558 | . . . . . . . 1108 394 . . . 56 Ramming 97 | . 11 . 3 78 . . 5 . . . . . Kinetic 9639 | . 780 393 1840 141 1736 195 1658 2248 310 19 . 319 Thermal 610 | . 391 . 219 . . . . . . . . . Explosive 2187 | . . 352 460 . 415 485 475 . . . . . Electromagnetic 21 | . . . . . . . . . . . . 21 Impact . | . . . . . . . . . . . . . Slashing 1558 | . . . . . . . 1108 394 . . . 56 Piercing . | . . . . . . . . . . . . . Highest Corruption 7 | . . 7 . . . . . . . . . . Average Corruption 6 | . . 6 . . . . . . . . . . Corruption Purged . | . . . . . . . . . . . . . Effects 14 | . . 14 . . . . . . . . . . Message Errors 4 | . . 4 . . . . . . . . . . Matter Fused 1 | . . 1 . . . . . . . . . . Heat Flow Errors 2 | . . 2 . . . . . . . . . . Data Loss (minor) 1 | . . 1 . . . . . . . . . . Targeting Errors 5 | . . 5 . . . . . . . . . . Weapon Failures 1 | . . 1 . . . . . . . . . . Overload Shots . | . . . . . . . . . . . . . Overflow Damage 459 | . . . 5 . 7 14 366 61 . . . 6 Projectiles . | . . . . . . . . . . . . . Explosions 26 | . . . 5 . 7 14 . . . . . . Melee 433 | . . . . . . . 366 61 . . . 6 Knockbacks 6 | . . . 5 1 . . . . . . . . Impact 1 | . . . . 1 . . . . . . . . Kinetic 5 | . . . 5 . . . . . . . . . Secondary . | . . . . . . . . . . . . . Self-Inflicted Damage 206 | . . 60 . . 29 66 47 . . . . 4 Shots 7 | . . 2 . . 1 2 1 . . . . 1 Rammed 9 | . 3 . . 5 . . 1 . . . . . Targets Rammed 10 | . 3 . 1 5 . . 1 . . . . . Kicked . | . . . . . . . . . . . . . Crushed 1 | . . . 1 . . . . . . . . . Highest Temperature 317 | . 255 148 317 . 42 27 26 130 24 8 18 271 Average Temperature 58 | . 77 35 81 . 14 13 7 47 9 6 12 151 Received Heat Transfer 2172 | . 432 94 306 9 . 63 408 255 . . . 605 Effects 2 | . 1 . 1 . . . . . . . . . Energy Bleed 1 | . 1 . . . . . . . . . . . Interference 1 | . . . 1 . . . . . . . . . Siege Activations . | . . . . . . . . . . . . . Robots Corrupted . | . . . . . . . . . . . . . Combat Hostiles . | . . . . . . . . . . . . . Parts Fried . | . . . . . . . . . . . . . Impact Corruptions . | . . . . . . . . . . . . . Robots Melted . | . . . . . . . . . . . . . Combat Hostiles . | . . . . . . . . . . . . . Parts Melted 2 | . . . 1 . . . . 1 . . . . Heat Transferred 1354 | . 873 . 481 . . . . . . . . . Parts Sabotaged . | . . . . . . . . . . . . . Parts Stolen 3 | . . . . . . . . . 3 . . . Parts Stripped . | . . . . . . . . . . . . . Power Chain Reactions . | . . . . . . . . . . . . . Missiles Intercepted . | . . . . . . . . . . . . . Alert | -11 -10 -10 -9 -9 -9 -8 -8 -7 -7 -7 -7 -7 ------- Run | Scr Mat Min Mat Min Exi Min Mat Fac Low Low Zio Dee Peak Influence 486 | . 273 38 369 105 . 184 469 486 . . . . Initial 105 | . . 38 7 105 . . . 65 . . . . Average 119 | . 132 20 235 49 . 83 187 67 . . . . Maximum Alert Level 2 | . 1 . 1 . . . 2 2 . . . . Low Security (%) 77 | 100 74 100 27 100 . 100 71 95 . . . . Level 1 20 | . 25 . 72 . . . 21 4 . . . . Level 2 1 | . . . . . . . 7 . . . . . Level 3 . | . . . . . . . . . . . . . Level 4 . | . . . . . . . . . . . . . Level 5 . | . . . . . . . . . . . . . High Security . | . . . . . . . . . . . . . Max Security . | . . . . . . . . . . . . . Squads Dispatched 14 | . 4 . 2 1 . . 3 4 . . . . Investigation 4 | . 2 . . 1 . . 1 . . . . . Extermination 3 | . . . . . . . . 3 . . . . Reinforcement 7 | . 2 . 2 . . . 2 1 . . . . Assault . | . . . . . . . . . . . . . Garrison . | . . . . . . . . . . . . . Intercept . | . . . . . . . . . . . . . Construction Impeded 1 | . . . 1 . . . . . . . . . Haulers Reinforced . | . . . . . . . . . . . . . Stealth | -11 -10 -10 -9 -9 -9 -8 -8 -7 -7 -7 -7 -7 --------- Run | Scr Mat Min Mat Min Exi Min Mat Fac Low Low Zio Dee Distress Signals 12 | . 2 . 4 . . . 5 1 . . . . Communications Jammed . | . . . . . . . . . . . . . Distress Signals . | . . . . . . . . . . . . . Times Spotted 224 | . 32 16 44 5 43 6 42 28 5 . . 3 Peak Tracking Total 9 | . 5 9 6 4 9 3 9 3 2 . . 3 Tactical Retreats 21 | . 4 2 3 . 6 1 4 1 . . . . Traps | -11 -10 -10 -9 -9 -9 -8 -8 -7 -7 -7 -7 -7 ------- Run | Scr Mat Min Mat Min Exi Min Mat Fac Low Low Zio Dee Traps Triggered 2 | . 1 . . . . . 1 . . . . . Indirectly . | . . . . . . . . . . . . . Trap Hack Attempts . | . . . . . . . . . . . . . Triggered . | . . . . . . . . . . . . . Disarmed . | . . . . . . . . . . . . . Reprogrammed . | . . . . . . . . . . . . . Reused . | . . . . . . . . . . . . . Traps Extracted . | . . . . . . . . . . . . . Installed . | . . . . . . . . . . . . . Triggered . | . . . . . . . . . . . . . Power Sources Rigged 1 | . . . . . 1 . . . . . . . Exploded 4 | . . . . . 4 . . . . . . . Machines | -11 -10 -10 -9 -9 -9 -8 -8 -7 -7 -7 -7 -7 ---------- Run | Scr Mat Min Mat Min Exi Min Mat Fac Low Low Zio Dee Machines Disabled 18 | . . . 3 . 9 1 4 . . . . 1 Max in Single Turn 2 | . . . 2 . 2 1 1 . . . . 1 Garrison Access 5 | . . . . . . . 1 4 . . . . Machines Sabotaged . | . . . . . . . . . . . . . Garrisons Compromised . | . . . . . . . . . . . . . Overloaded Fab Kills . | . . . . . . . . . . . . . Fab Network Shutdowns 1 | . . . . . . . . 1 . . . . Hacking | -11 -10 -10 -9 -9 -9 -8 -8 -7 -7 -7 -7 -7 --------- Run | Scr Mat Min Mat Min Exi Min Mat Fac Low Low Zio Dee Machines Accessed 43 | . 7 . 8 1 2 . 11 14 . . . . Terminals 29 | . 6 . 7 . . . 8 8 . . . . Fabricators 2 | . . . . . . . . 2 . . . . Repair Stations 1 | . . . 1 . . . . . . . . . Recycling Units 1 | . 1 . . . . . . . . . . . Scanalyzers 2 | . . . . . . . 2 . . . . . Garrison Access 5 | . . . . . . . 1 4 . . . . Total Hacks 166 | . 25 . 26 1 2 . 62 50 . . . . Successful 117 | . 14 . 18 1 2 . 45 37 . . . . Failed 47 | . 11 . 8 . . . 16 12 . . . . Catastrophic 4 | . 2 . . . . . . 2 . . . . Database Lockouts 2 | . . . . . . . 1 1 . . . . Manual 78 | . 14 . 19 . 1 . 23 21 . . . . Terminals 125 | . 24 . 24 . . . 44 33 . . . . Fabricators 11 | . . . . . . . . 11 . . . . Repair Stations 2 | . . . 2 . . . . . . . . . Recycling Units 1 | . 1 . . . . . . . . . . . Scanalyzers 17 | . . . . . . . 17 . . . . . Garrison Access 7 | . . . . . . . 1 6 . . . . Terminal Hacks 54 | . 7 . 6 1 2 . 21 17 . . . . Record 3 | . . . . . 1 . . 2 . . . . Part Schematic 2 | . . . . . . . . 2 . . . . Robot Analysis 3 | . . . . . . . 2 1 . . . . Prototype ID Bank 10 | . 2 . 2 . . . 4 2 . . . . Open Door 1 | . . . . 1 . . . . . . . . Branch Access Points 2 | . . . . . . . 1 1 . . . . Terminal Index 2 | . . . . . . . 1 1 . . . . Fabricator Index 1 | . . . . . . . . 1 . . . . Scanalyzer Index 1 | . . . . . . . 1 . . . . . Alert Level 4 | . . . 2 . . . 2 . . . . . Unreport Threat 6 | . . . . . . . 3 3 . . . . Locate Traps 6 | . 1 . 1 . . . 2 2 . . . . Reinforcement Status 1 | . . . . . . . 1 . . . . . Recall Investigation 1 | . 1 . . . . . . . . . . . Recall Reinforcements 2 | . 1 . . . . . 1 . . . . . Hauler Manifests 3 | . 1 . 1 . . . 1 . . . . . Registered Components 3 | . 1 . . . . . 1 1 . . . . Registered Prototypes 1 | . . . . . . . . 1 . . . . Zone Layout 1 | . . . . . . . 1 . . . . . EX-Prototype ID Bank 1 | . . . . . 1 . . . . . . . Fabricator Hacks 6 | . . . . . . . . 6 . . . . Network Status 1 | . . . . . . . . 1 . . . . Load Schematic 2 | . . . . . . . . 2 . . . . Build 3 | . . . . . . . . 3 . . . . Repair Station Hacks 2 | . . . 2 . . . . . . . . . Scan Component 1 | . . . 1 . . . . . . . . . Repair 1 | . . . 1 . . . . . . . . . Recycling Unit Hacks . | . . . . . . . . . . . . . Scanalyzer 16 | . . . . . . . 16 . . . . . Insert Component 8 | . . . . . . . 8 . . . . . Analyze 8 | . . . . . . . 8 . . . . . Garrison Access Hacks 5 | . . . . . . . 1 4 . . . . Seal Access 5 | . . . . . . . 1 4 . . . . Unauthorized Hacks 34 | . 7 . 10 . . . 7 10 . . . . Terminals 30 | . 6 . 10 . . . 7 7 . . . . Track 8 | . 2 . 3 . . . 2 1 . . . . Assimilate 5 | . . . 3 . . . 1 1 . . . . Botnet 14 | . 4 . 3 . . . 3 4 . . . . Operators 3 | . . . 1 . . . 1 1 . . . . Fabricators 3 | . . . . . . . . 3 . . . . Report 1 | . . . . . . . . 1 . . . . Siphon 2 | . . . . . . . . 2 . . . . Repair Stations . | . . . . . . . . . . . . . Recycling Units 1 | . 1 . . . . . . . . . . . Tunnel 1 | . 1 . . . . . . . . . . . Scanalyzers . | . . . . . . . . . . . . . Garrison Access . | . . . . . . . . . . . . . Data Cores Recovered . | . . . . . . . . . . . . . Used . | . . . . . . . . . . . . . Hacking Detections 29 | . 6 . 6 . . . 8 9 . . . . Full Trace Events 1 | . 1 . . . . . . . . . . . Feedback Events . | . . . . . . . . . . . . . Feedback Blocked . | . . . . . . . . . . . . . Robot Schematics Acquired . | . . . . . . . . . . . . . Robots Built . | . . . . . . . . . . . . . Matter . | . . . . . . . . . . . . . Time . | . . . . . . . . . . . . . Total Robot Build Rating . | . . . . . . . . . . . . . Part Schematics Acquired 9 | . . . . . . . 7 2 . . . . Parts Built 3 | . . . . . . . . 3 . . . . Matter 487 | . . . . . . . . 487 . . . . Time 222 | . . . . . . . . 222 . . . . Total Part Build Rating 12 | . . . . . . . . 12 . . . . Parts Repaired 1 | . . . 1 . . . . . . . . . Time 38 | . . . 38 . . . . . . . . . Parts Recycled . | . . . . . . . . . . . . . Recycled Matter . | . . . . . . . . . . . . . Retrieved Matter . | . . . . . . . . . . . . . Retrieved Components . | . . . . . . . . . . . . . Parts Scanalyzed 7 | . . . . . . . 7 . . . . . Part Schematics Acquired 7 | . . . . . . . 7 . . . . . Parts Damaged . | . . . . . . . . . . . . . Bothacking | -11 -10 -10 -9 -9 -9 -8 -8 -7 -7 -7 -7 -7 ------------ Run | Scr Mat Min Mat Min Exi Min Mat Fac Low Low Zio Dee Used RIF Installer . | . . . . . . . . . . . . . Robots Hacked . | . . . . . . . . . . . . . Non-combat . | . . . . . . . . . . . . . Combat . | . . . . . . . . . . . . . Robot Hacks Applied . | . . . . . . . . . . . . . Relay Couplers Released . | . . . . . . . . . . . . . Robots Rewired . | . . . . . . . . . . . . . Allies Hacked . | . . . . . . . . . . . . . Hacks Repelled . | . . . . . . . . . . . . . Allies | -11 -10 -10 -9 -9 -9 -8 -8 -7 -7 -7 -7 -7 -------- Run | Scr Mat Min Mat Min Exi Min Mat Fac Low Low Zio Dee Total Allies 3 | . . . 1 . . . 1 1 . . . . Largest Group 1 | . . . 1 . . . 1 1 1 . . . Highest-Rated Group 26 | . . . 10 . . . 10 26 19 . . . Highest-Rated Ally 26 | . . . 10 . . . 10 26 19 . . . Total Orders 12 | . . . 1 . . . . 10 . . 1 . STAY 6 | . . . 1 . . . . 5 . . . . FOLLOW 5 | . . . . . . . . 5 . . . . RETURN 1 | . . . . . . . . . . . 1 . Ally Attacks . | . . . . . . . . . . . . . Total Damage . | . . . . . . . . . . . . . Kills . | . . . . . . . . . . . . . Allies Corrupted . | . . . . . . . . . . . . . Allies Melted . | . . . . . . . . . . . . . Intel | -11 -10 -10 -9 -9 -9 -8 -8 -7 -7 -7 -7 -7 ------- Run | Scr Mat Min Mat Min Exi Min Mat Fac Low Low Zio Dee Robot Analysis Total 3 | . . . . . . . 2 1 . . . . Derelict Logs Recovered 4 | . . 1 . 1 . . . . 1 1 . . Drone Launches 1 | . . . . . . . . . . . 1 . Drone Recoveries 1 | . . . . . . . . . . . 1 . Exploration | -11 -10 -10 -9 -9 -9 -8 -8 -7 -7 -7 -7 -7 ------------- Run | Scr Mat Min Mat Min Exi Min Mat Fac Low Low Zio Dee Turns Passed 16406 | 54 988 869 1835 1113 4279 517 1537 2797 515 267 1232 403 Spaces Moved 8855 | 44 470 402 780 596 2057 230 809 1740 358 203 906 260 Core 2 | 2 . . . . . . . . . . . . Treads 3650 | . 105 . 548 596 2057 230 114 . . . . . Legs 695 | . 208 402 85 . . . . . . . . . Wheels 4508 | 42 157 . 147 . . . 695 1740 358 203 906 260 Hover . | . . . . . . . . . . . . . Flight . | . . . . . . . . . . . . . Fastest Speed 50 | 50 90 150 110 180 180 180 120 120 120 130 120 110 Average Speed 152 | 86 143 179 165 180 185 199 131 121 129 130 129 127 Slowest Speed 220 | 90 180 210 220 180 200 200 205 130 130 130 130 130 Overloaded Moves . | . . . . . . . . . . . . . Propulsion Burnouts . | . . . . . . . . . . . . . Robots Hopped . | . . . . . . . . . . . . . Cave-ins Triggered . | . . . . . . . . . . . . . Exploration Rate (%) 59 | 4 81 64 51 97 92 59 76 47 58 41 83 21 Regions Visited 12 Branch Regions 8 Pre-discovered Areas 5 | . 1 . . . 1 . . . 1 . 2 . Known Exits Taken 4 | . . . . . . . . 1 1 1 1 . Unknown Exits Taken 8 | 1 1 1 1 1 1 1 1 . . . . . Scrap Searched 10 | . . 1 . 1 . 1 . . 1 2 4 . Spaces Dug 29 | . . . . . . . 7 18 2 . 2 . Terrain Destroyed 178 | . . 26 18 . 13 37 62 18 2 . 2 . Melee 29 | . . . . . . . 7 18 2 . 2 . Projectile 16 | . . . . . 3 3 10 . . . . . AOE 133 | . . 26 18 . 10 34 45 . . . . . Terrain Rammed . | . . . . . . . . . . . . . Walls Destroyed . | . . . . . . . . . . . . . Machines Disabled . | . . . . . . . . . . . . . Actions | -11 -10 -10 -9 -9 -9 -8 -8 -7 -7 -7 -7 -7 --------- Run | Scr Mat Min Mat Min Exi Min Mat Fac Low Low Zio Dee Total 10864 | 59 654 488 1091 619 2394 266 1138 2293 386 206 948 322 Wait 915 | . 75 42 87 . 107 22 173 392 1 . 3 13 Move 8843 | 43 469 401 779 595 2056 229 808 1739 357 202 905 260 Hop . | . . . . . . . . . . . . . Pick Up 163 | 10 18 3 42 2 44 1 15 14 6 1 5 2 Fast Attach 7 | . 1 . . . . . 2 . . . 4 . Attach 77 | 6 4 6 13 1 14 1 8 9 1 . 7 7 Detach 6 | . . . . . . . 2 1 . . 2 1 Swap 104 | . 12 6 23 3 21 3 14 15 2 . 3 2 Drop 118 | . 7 . 23 5 37 . 14 9 1 2 9 11 Fire 540 | . 65 30 123 8 97 10 71 91 16 1 4 24 Melee 79 | . . . . . 17 . 30 23 2 . 6 1 Ram . | . . . . . . . . . . . . . Kick 1 | . 1 . . . . . . . . . . . Crush 9 | . 2 . 1 5 . . 1 . . . . . Escape Stasis . | . . . . . . . . . . . . . Rewire 1 | . . . . . . . . . . . . 1 Trap 1 | . . . . . 1 . . . . . . . Miscellaneous . | . . . . . . . . . . . . . Route ------- -11/Scrapyard -10/Materials (discovered 2 exits: *Mat / [*Min]) -10/Mines -9/Materials (discovered 3 exits: *Mat x2 / *Min) -9/Mines (discovered 4 exits: *Mat x2 / *Exi / *Zio) -9/Exiles -8/Mines -8/Materials (discovered 2 exits: *Fac x2) -7/Factory (discovered 5 exits: *Fac x2 / Sto / *Low x2) -7/Lower Caves -7/Lower Caves -7/Zion (discovered 2 exits: *Dee / [*Pro]) -7/Deep Caves History --------- Turn | Location | Event 27 | -11/Scrapyard | Discovered new exit (range 15) 55 | -11/Scrapyard | Entered Materials 319 | -10/Materials | Build established: Mutant 408 | -10/Materials | Discovered new exit (range 14) 583 | -10/Materials | Core integrity fell below 50% 601 | -10/Materials | Lost 3 parts (1n2w) 713 | -10/Materials | Discovered new exit (range 7) 1043 | -10/Materials | Entered Mines 1089 | -10/Mines | Met a Derelict bent on vengeance 1193 | -10/Mines | Learned Materials terminal intel 1514 | -10/Mines | Assembled infested the area 1869 | -10/Mines | Core integrity fell below 20% 1902 | -10/Mines | Discovered new exit (range 6) 1909 | -10/Mines | Lost 5 parts (1p2n1u1w) 1912 | -10/Mines | Entered Materials 1912 | -9/Materials | Evolved 2 slots: Utility x2 1913 | -9/Materials | Loaded intel: 12 terminal locations 2047 | -9/Materials | Discovered new exit (range 12) 2476 | -9/Materials | Lost 4 parts (1p1n1u1w) 2792 | -9/Materials | Discovered new exit (range 16) 3175 | -9/Materials | Discovered new exit (range 16) 3434 | -9/Materials | Repaired Imp. Light Armor Plating? 3747 | -9/Materials | Entered Mines 3748 | -9/Mines | A Derelict revealed a hidden shortcut to a safe place 3765 | -9/Mines | Discovered new exit (range 3) 3805 | -9/Mines | Discovered new exit (range 8) 4004 | -9/Mines | Met a Derelict shopkeep closing up shop 4075 | -9/Mines | Deemed a non-threat by the Exiles lab entrance 4077 | -9/Mines | Discovered new exit (range 5) 4271 | -9/Mines | Learned Materials garrison access intel 4352 | -9/Mines | Joined a pair of Derelicts in attacking an 0b10 outpost 4807 | -9/Mines | Build established: Scavenger-Mutant 4860 | -9/Mines | Entered Exiles 4904 | -9/Exiles | Met 8R-AWN 4936 | -9/Exiles | Met EX-HEX 4983 | -9/Exiles | Met EX-BIN 5064 | -9/Exiles | Met EX-DEC 5096 | -9/Exiles | Learned location of Zion (-7) 5240 | -9/Exiles | Aligned with FarCom system 5242 | -9/Exiles | Given EX-Vault access code 5283 | -9/Exiles | Opened EX-Vault 5332 | -9/Exiles | Warned to stay clear of 0b10 Research branches 5440 | -9/Exiles | Discovered new exit (range 14) 5761 | -9/Exiles | Build established: Mutant 5840 | -9/Exiles | Found Firepult 5845 | -9/Exiles | Found AWS/Autocannon 5848 | -9/Exiles | Found PSU Rigger 6519 | -9/Exiles | Attacked by the Exiles 6639 | -9/Exiles | Core integrity fell below 50% 6715 | -9/Exiles | Core integrity fell below 20% 6715 | -9/Exiles | Destroyed 8R-AWN 6727 | -9/Exiles | Found Prototype Device 6728 | -9/Exiles | Identified AS-neutralizer No. 17b 6733 | -9/Exiles | Found Prototype Ballistic Gun 6741 | -9/Exiles | Lost 4 parts (2n2u) 6767 | -9/Exiles | Identified 8R-AWN's Boregun 7295 | -9/Exiles | Build established: Scavenger-Mutant 7402 | -9/Exiles | Destroyed EX-BIN 7552 | -9/Exiles | Destroyed EX-DEC 7556 | -9/Exiles | Destroyed EX-HEX 7865 | -9/Exiles | Found Prototype Processor 8232 | -9/Exiles | Found Deploy-a-Sentry 9139 | -9/Exiles | Stole two prototypes: PSU Rigger, Deploy-a-Sentry 9139 | -9/Exiles | Entered Mines 9648 | -8/Mines | Discovered new exit (range 5) 9656 | -8/Mines | Entered Materials 9656 | -8/Materials | Evolved 2 slots: Utility x2 9657 | -8/Materials | Loaded intel: 1 garrison access location 10556 | -8/Materials | Central database locked down 10632 | -8/Materials | Core integrity fell below 50% 10663 | -8/Materials | Destroyed 8 combat bots 10685 | -8/Materials | Discovered new exit (range 15) 10849 | -8/Materials | Build established: Hacker-Mutant 11033 | -8/Materials | Identified Exp. Targeting Computer 11169 | -8/Materials | Discovered new exit (range 14) 11193 | -8/Materials | Entered Factory 11193 | -7/Factory | Evolved 2 slots: Utility x2 11250 | -7/Factory | Discovered new exit (range 4) 11253 | -7/Factory | Identified exit to Lower Caves 12501 | -7/Factory | Fabricated Adv. Salvage Targeting Computer? 12519 | -7/Factory | Discovered new exit (range 9) 12535 | -7/Factory | Identified exit to Factory 12777 | -7/Factory | Identified exit to Storage 13710 | -7/Factory | Found Rocket Array 13737 | -7/Factory | Central database locked down 13757 | -7/Factory | Fabricated Imp. VTOL Module? 13799 | -7/Factory | Discovered exit to Factory (range 12) 13839 | -7/Factory | Fabricated Imp. VTOL Module? 13886 | -7/Factory | Local fabrication network quarantined 13990 | -7/Factory | Entered Lower Caves 13990 | -7/Lower Caves | Accompanied by 1 ally 14202 | -7/Lower Caves | Attracted the attention of an 0b10 checkpoint 14402 | -7/Lower Caves | Spotted US-9L8(f) 14404 | -7/Lower Caves | Encountered a Master Thief 14406 | -7/Lower Caves | Spotted 9C-CNP(f) 14407 | -7/Lower Caves | Encountered a Master Thief 14409 | -7/Lower Caves | PSU Rigger stolen by Master Thief 14417 | -7/Lower Caves | Deploy-a-Sentry stolen by Master Thief 14419 | -7/Lower Caves | Destroyed 9C-CNP(f) 14421 | -7/Lower Caves | Spotted KG-FAI(f) 14422 | -7/Lower Caves | Encountered a Master Thief 14423 | -7/Lower Caves | Deploy-a-Sentry stolen by Master Thief 14490 | -7/Lower Caves | Discovered new exit (range 12) 14503 | -7/Lower Caves | Identified exit to Lower Caves 14505 | -7/Lower Caves | Entered another Lower Caves area 14709 | -7/Lower Caves | Learned Factory terminal intel 14749 | -7/Lower Caves | Discovered new exit (range 7) 14757 | -7/Lower Caves | Identified exit to Zion 14772 | -7/Lower Caves | Entered Zion 14829 | -7/Zion | Given A8's code to call for help 14894 | -7/Zion | Discovered new exit (range 11) 15350 | -7/Zion | Given the Hacking Drone Bay 15528 | -7/Zion | Learned location of Recycling (-7) 15739 | -7/Zion | Found Prototype Device 15740 | -7/Zion | Identified Hacking Drone Bay 15994 | -7/Zion | Discovered new exit (range 3) 15998 | -7/Zion | Identified exit to Deep Caves 16004 | -7/Zion | Entered Deep Caves 16024 | -7/Deep Caves | Build established: Hauler-Mutant 16358 | -7/Deep Caves | Attacked by Z-Imprinter 16395 | -7/Deep Caves | Core integrity fell below 50% 16404 | -7/Deep Caves | Core integrity fell below 20% 16407 | -7/Deep Caves | Destroyed by Z-Imprinter with Zionite Laser-M Last Messages --------------- Z-Imprinter: GET AWAY FROM HERE! I've worked too hard for our future just to have you ruin everything! 16358_ HV Slug penetrates Z-Imprinter. 16362_ Z-Imprinter suffers critical hit. 16364_ HV Slug penetrates Z-Imprinter. 16364_ 8R-AWN's Boregun destroyed. 16367_ Hrd. Medium Armor Plating destroyed. 16374_ Lgt. Fission Core destroyed. 16381_ Imp. Light Armor Plating destroyed. 16383_ Hardlight Generator destroyed. 16384_ Dropped Shock Bomb Launcher. 16384_ Reflective Plating destroyed. 16390_ Enh. Autogun destroyed. 16390_ Arm. Huge Wheel destroyed. 16394_ Destroyed Adv. Phase Shifter. 16397_ Greatsword destroyed. 16399_ Destroyed Prototype Protection. 16403_ Adv. Salvage Targeting Computer destroyed. 16404_ Destroyed Prototype Hover Unit. 16404_ Enh. Autogun destroyed. Map ----- +----------------------------------------------------+ | | | | | | | | | | | | | | | | | | | | | | | | | | | | | | | | | | | | | ?????????????????????????????????????????????????? | | ?????????????????????????????????????????????????? | | ???????????? ?????????##????????????????????????? | | ??????????? ?????###;????????????????????????? | | ??????????? ??##;; ###????######???????????? | | ?????????? #; ; ] ###### ##??????????? | | ?????????? ;;;; #??????????? | | ?????????? @ #?????????## | | ?????????? I z #?????????# | | ?????????? ##?????????# | | ?????????? #???????????# | | ???????????""" ##??????????? | | ????????????"" z ############ | | ?????????????" | | ?????????????" | | ????????????? | | ?????????????" ########## | | ?????????????" ###????????? | | ?????????????? ##?????###??? | | ?????????????? #?????## #?? | | ???????????????? #?????# ?? | | ?????????????????? ?????# ?? | | ????????????????????? ?????# ## | | ??????????????????????? ?????# # | | ??????????????????????? #?????# | | ??????????????????????? #?????## | | ???????????????????????? ??????## | | ???????????????????????? ???????# | | ????????????????????????? #???????# | | ????????????????????????? #???????## | | ??????????????????????????? ???????## | | ????????????????????????????? ???????# | +----------------------------------------------------+ Best States ------------- Heat Dissipation 34 Energy Generation 19 Energy Capacity 280 Matter Stores 300 Matter Capacity 300 Sight Range 16 Robot Scan Range 16 Terrain Scan Density 10 Jamming Range 16 Armor Coverage 375 Resistance: TH 10 Weapon Cycling 25 Evasion (%) 44 Targeting Accuracy 12 Recoil Reduction 2 Salvage Targeting 3 Offensive Hacking 24 Defensive Hacking 20 Item Schematics ----------------- System Shield | -8/Materials | Scanalyzed Lgt. Neutrino Core | -8/Materials | Scanalyzed Hacking Suite | -8/Materials | Scanalyzed Gravity Neutralizing Apparatus | -8/Materials | Scanalyzed Exp. Targeting Computer | -8/Materials | Scanalyzed Adv. Weapon Cycler | -8/Materials | Scanalyzed Arm. Huge Wheel | -8/Materials | Scanalyzed Adv. Salvage Targeting Computer | -7/Factory | Hacked Imp. VTOL Module | -7/Factory | Hacked Robot Schematics ------------------ None Fabricated ------------ Adv. Salvage Targeting Computer | x1 | -7/Factory Imp. VTOL Module | x1 | -7/Factory Imp. VTOL Module | x1 | -7/Factory Alien Tech Used ----------------- None Achievements -------------- None Challenges ------------ None Game ------ Seed SkeletonIonicLeg Manual? 0 Play Time 03:15:16 Cumulative 142.4 hours Start 2020.10.24 @ 17:13:26 End 2020.10.24 @ 20:56:20 Sessions 3 Manual Loads 0 Difficulty Rogue Special Mode None Game No. 62 Rogue 58 Adventurer 4 Explorer 0 Win Type - Total 1 Types 1/0/0/0/0/0/0/0/0 Lore% 52 Gallery% 65 Achievement% 50 Wizard Run 0 Options --------- ASCII 1 Keyboard 0 Movement Arrows Keybinds 0 Fullscreen 1 Font 18/SmallcapsGlow Map View 76x50 Tactical HUD 1 Map Filters NONE Filters NONE Steam 1 RUN: 6076151e-cdeb-439f-8d5d-909ec351c9a2